bitfinex-derivatives/quotes_SOLF0:USTF0_20250716
["timestamp","ask_amount","ask_price","bid_price","bid_amount"]
[1752650722865,4.25441248,164.14,164.09,0.04521253]
[1752650722866,6.0935,164.1,164.09,0.04521253]
[1752650726267,6.0933,164.11,164.09,0.04521253]
[1752650726469,4.25441248,164.12,164.09,0.04521253]
[1752650728066,6.0934,164.11,164.09,0.04521253]
[1752650729169,6.0935,164.1,164.09,0.04521253]
[1752650743581,6.0951,164.06,163.99,5.09794109]
[1752650743885,4.25441248,164.1,164.01,4.25441248]
[1752650744182,6.0947,164.07,164.04,6.0954]
[1752650744984,6.13764702,164.07,164.04,8.81694205]
[1752650749794,0.04294702,164.07,164.04,8.81694205]
[1752650750294,0.04294702,164.07,164.05,2.72154205]
[1752650750896,0.04294702,164.07,164.06,2.72154205]
[1752650751898,0.04294702,164.07,164.0,5.09794109]
[1752650752093,0.04294702,164.07,164.06,2.72154205]
[1752650752288,0.04294702,164.07,164.05,2.72154205]
[1752650752492,0.04294702,164.07,164.06,2.72154205]
[1752650752995,0.04294702,164.07,164.06,6.095]
[1752650755694,0.04294702,164.07,164.05,6.0952]
[1752650759597,0.04294702,164.07,164.06,6.095]
[1752650760297,0.04294702,164.07,164.05,6.0952]
[1752650760995,0.04294702,164.07,164.06,6.095]
[1752650762193,10.24374173,164.15,164.06,9.01055164]
[1752650762396,14.49514246,164.17,164.08,4.25140073]
[1752650762594,14.49514246,164.17,164.1,4.25140073]
[1752650762796,4.25140073,164.17,164.1,4.25140073]
[1752650762998,6.0919,164.15,164.1,4.25140073]
[1752650763300,6.0919,164.15,164.11,6.0929]
[1752650763503,6.0919,164.15,164.11,6.13143589]
[1752650764099,6.0919,164.15,164.12,6.0927]
[1752650765201,6.0913,164.16,164.13,6.0924]
[1752650765403,4.25140073,164.19,164.13,6.0924]
[1752650765796,6.0911,164.17,164.12,4.25140073]
[1752650766102,6.0911,164.17,164.14,0.04391152]
[1752650769611,6.0913,164.16,164.14,0.04391152]
[1752650770207,6.0911,164.17,164.14,0.04391152]
[1752650771106,6.0913,164.16,164.14,0.04391152]
[1752650772008,6.0917,164.15,164.14,0.04391152]
[1752650772203,187.44374173,164.22,164.14,0.04391152]
[1752650772411,4.25140073,164.18,164.14,0.04391152]
[1752650772722,6.0915,164.16,164.14,0.04391152]
[1752650776110,6.091,164.17,164.14,0.04391152]
[1752650778909,8.80968954,164.17,164.14,6.13591152]
[1752650779208,2.71868954,164.19,164.15,2.71868954]
[1752650779415,177.2,164.22,164.15,2.71868954]
[1752650779710,2.71868954,164.2,164.16,2.71868954]
[1752650780312,2.71868954,164.2,164.17,6.0907]
[1752650780612,8.80848954,164.2,164.17,6.0907]
[1752650781312,8.80848954,164.2,164.16,8.85198081]
[1752650782408,6.0902,164.19,164.16,8.85198081]
[1752650783012,6.09,164.2,164.16,6.13329127]
[1752650783613,6.09,164.2,164.17,6.0909]
[1752650783912,6.0896,164.21,164.17,6.0909]
[1752650784108,181.44634624,164.22,164.17,6.0909]
[1752650785113,6.0899,164.2,164.17,6.0909]
[1752650785612,6.0899,164.2,164.16,6.13329127]
[1752650786214,6.0899,164.2,164.17,6.0909]
[1752650786511,6.0902,164.19,164.16,0.04219127]
[1752650787013,181.44634624,164.22,164.16,6.13319127]
[1752650787207,6.09,164.2,164.16,0.04219127]
[1752650788114,6.09,164.2,164.17,6.0909]
[1752650789616,6.09,164.2,164.16,6.13329127]
[1752650791014,6.0902,164.19,164.16,6.13329127]
[1752650791215,4.24634624,164.21,164.16,6.13329127]
[1752650791716,6.09,164.2,164.16,6.13329127]
[1752650792815,6.09,164.2,164.17,6.0909]
[1752650794418,6.09,164.2,164.16,0.04219127]
[1752650794419,6.0895,164.21,164.18,6.0904]
[1752650797619,6.0899,164.2,164.17,6.0908]
[1752650798422,6.0904,164.19,164.16,6.13339127]
[1752650799820,4.24634624,164.2,164.16,0.04219127]
[1752650800022,4.24634624,164.18,164.16,0.04219127]
[1752650800419,6.0909,164.17,164.16,0.04219127]
[1752650802919,8.80972349,164.17,164.16,0.04219127]
[1752650812634,6.0909,164.17,164.16,0.04219127]
[1752650812933,8.80972349,164.17,164.16,0.04219127]
[1752650821647,6.0906,164.18,164.16,0.04219127]
[1752650821949,8.80942349,164.18,164.16,0.04219127]
[1752650822447,6.0909,164.17,164.16,0.04219127]
[1752650822645,8.80972349,164.17,164.16,0.04219127]
[1752650827758,6.0921,164.14,164.11,2.71882349]
[1752650828253,6.0921,164.14,164.11,8.81162349]
[1752650828860,2.71882349,164.15,164.05,5.09794109]
[1752650829161,2.71882349,164.13,164.09,2.71882349]
[1752650829563,8.81152349,164.13,164.04,181.93794109]
[1752650829760,8.81152349,164.13,164.09,2.71882349]
[1752650830161,8.81152349,164.13,164.09,8.81242349]
[1752650830358,8.85392225,164.13,164.09,8.81242349]
[1752650830861,6.13509876,164.13,164.1,8.81232349]
[1752650831160,6.13509876,164.13,164.1,6.0935]
[1752650831361,6.13509876,164.13,164.1,8.81232349]
[1752650833261,0.04239876,164.13,164.1,8.81232349]
[1752650833457,0.04239876,164.13,164.04,181.93794109]
[1752650833458,0.04239876,164.13,164.11,8.81182349]
[1752650833659,0.04239876,164.13,164.11,2.71882349]
[1752650834562,0.04239876,164.13,164.11,8.81182349]
[1752650836766,0.04239876,164.13,164.1,8.81222349]
[1752650837064,6.13499876,164.13,164.1,8.81222349]
[1752650837865,6.0931,164.12,164.09,2.71882349]
[1752650839365,6.0931,164.12,164.08,8.81282349]
[1752650839865,6.0931,164.12,164.09,6.0938]
[1752650840164,8.85372225,164.13,164.08,2.71882349]
[1752650840365,0.04239876,164.13,164.1,6.0933]
[1752650841062,6.13489876,164.13,164.09,6.0937]
[1752650843065,6.13489876,164.13,164.09,8.81252349]
[1752650843566,8.85372225,164.13,164.09,8.81252349]
[1752650843864,8.85372225,164.13,164.1,6.0934]
[1752650844369,2.76122225,164.13,164.1,6.0934]
[1752650844962,2.76122225,164.13,164.09,2.71882349]
[1752650845167,8.85362225,164.13,164.09,8.81252349]
[1752650845467,2.71882349,164.12,164.08,2.71882349]
[1752650845970,2.71882349,164.11,164.07,2.71882349]
[1752650846170,6.0936,164.1,164.06,8.81352349]
[1752650846670,6.13635947,164.1,164.06,8.81352349]
[1752650846870,2.71882349,164.09,164.06,6.0947]
[1752650847281,2.71882349,164.08,164.03,529.21882349]
[1752650847571,2.71882349,164.07,164.02,2.71882349]
[1752650847771,8.81342349,164.07,164.03,7.48007528]
[1752650847972,8.81342349,164.07,164.03,2.71882349]
[1752650848273,2.75739769,164.07,164.04,6.0955]
[1752650848473,0.0385742,164.07,164.04,6.0955]
[1752650848674,2.75739769,164.07,164.04,6.0955]
[1752650849368,0.0385742,164.07,164.04,6.0955]
[1752650849770,0.0385742,164.07,164.04,8.81432349]
[1752650850576,0.0385742,164.07,164.04,6.0955]
[1752650850873,0.0385742,164.07,164.04,8.81432349]
[1752650851479,0.0385742,164.07,164.04,6.0955]
[1752650851676,0.0385742,164.07,164.04,8.81432349]
[1752650851871,2.75739769,164.07,163.99,176.72]
[1752650852076,8.85229769,164.07,164.03,2.71882349]
[1752650852478,8.85229769,164.07,164.03,8.81482349]
[1752650855579,6.0951,164.06,164.03,8.81482349]
[1752650855780,2.71882349,164.06,164.02,8.81512349]
[1752650856274,8.81402349,164.06,164.02,8.81512349]
[1752650857380,6.0952,164.06,164.02,8.81512349]
[1752650857880,6.0952,164.06,164.03,6.096]
[1752650858081,8.85219769,164.07,164.03,6.096]
[1752650858281,8.85219769,164.07,164.02,2.71882349]
[1752650858480,8.85219769,164.07,163.99,176.72]
[1752650858481,8.85219769,164.07,164.03,2.71882349]
[1752650859080,8.85219769,164.07,164.03,8.81472349]
[1752650862583,8.85219769,164.07,164.03,6.0959]
[1752650862783,8.85219769,164.07,164.03,8.81472349]
[1752650864492,6.0951,164.06,164.03,8.81472349]
[1752650866087,8.85209769,164.07,164.04,6.0957]
[1752650866288,2.71882349,164.05,163.99,176.72]
[1752650866487,2.71882349,164.06,164.02,2.71882349]
[1752650866687,2.71882349,164.06,163.99,176.72]
[1752650866688,8.81402349,164.06,164.03,2.71882349]
[1752650866884,8.81402349,164.06,164.02,2.71882349]
[1752650867088,8.8551393,164.06,164.02,8.81502349]
[1752650867990,8.8551393,164.06,164.03,6.0961]
[1752650868183,6.13631581,164.06,164.03,8.81492349]
[1752650868992,0.04111581,164.06,164.04,6.0957]
[1752650869992,6.13621581,164.06,164.03,6.096]
[1752650870293,6.13621581,164.06,164.03,8.81482349]
[1752650870991,0.04111581,164.06,164.03,8.81482349]
[1752650871193,0.04111581,164.06,164.03,2.71882349]
[1752650871387,0.04111581,164.06,164.05,2.71882349]
[1752650871691,6.0937,164.1,164.05,2.71882349]
[1752650871892,2.71882349,164.13,164.08,2.71882349]
[1752650872091,2.71882349,164.13,164.09,2.71882349]
[1752650872288,2.71882349,164.14,164.09,8.81242349]
[1752650872493,2.71882349,164.15,164.1,2.71882349]
[1752650872992,526.78,164.16,164.1,6.13822519]
[1752650872993,6.0921,164.14,164.1,6.13822519]
[1752650873188,4.24862288,164.19,164.11,4.24862288]
[1752650873887,6.0918,164.15,164.13,0.04383174]
[1752650877394,4.24862288,164.19,164.13,0.04383174]
[1752650877590,4.24862288,164.19,164.13,4.29245462]
[1752650877893,6.0904,164.19,164.15,6.0915]
[1752650878887,6.0896,164.21,164.16,6.0911]
[1752650879086,180.92862288,164.23,164.15,4.24862288]
[1752650879691,6.0901,164.2,164.17,0.04346337]
[1752650879995,180.92862288,164.23,164.17,0.04346337]
[1752650880597,6.0904,164.19,164.17,0.04346337]
[1752650882499,6.09,164.2,164.17,0.04346337]
[1752650883097,6.0902,164.19,164.17,0.04346337]
[1752650885504,4.24862288,164.23,164.17,0.04346337]
[1752650886702,6.0899,164.2,164.17,0.04346337]
[1752650890008,6.0904,164.19,164.17,0.04346337]
[1752650892110,6.0905,164.18,164.17,0.04346337]
[1752650893312,6.0905,164.18,164.1,4.24862288]
[1752650893313,6.0914,164.16,164.1,4.24862288]
[1752650894105,6.0911,164.17,164.1,4.24862288]
[1752650894311,6.0911,164.17,164.12,6.0925]
[1752650894607,0.03944511,164.15,164.12,6.0925]
[1752650894813,0.03944511,164.15,164.13,6.0924]
[1752650896113,0.03944511,164.15,164.12,8.81153687]
[1752650896915,0.03944511,164.15,164.12,6.0927]
[1752650897307,0.03944511,164.15,164.13,6.0924]
[1752650901719,0.03944511,164.15,164.14,6.092]
[1752650913331,4.24814024,164.22,164.13,4.24814024]
[1752650913829,6.0902,164.19,164.16,6.0911]
[1752650914830,6.0902,164.19,164.16,6.12983279]
[1752650916932,6.09,164.2,164.17,8.80825273]
[1752650917433,8.80695273,164.21,164.17,8.80825273]
[1752650917731,8.80695273,164.21,164.17,2.71735273]
[1752650918332,8.80695273,164.21,164.17,6.0907]
[1752650919031,8.80695273,164.21,164.18,6.0905]
[1752650919231,8.80675273,164.21,164.16,2.75608552]
[1752650919827,8.80675273,164.21,164.17,6.0907]
[1752650920031,8.80675273,164.21,164.16,2.75608552]
[1752650920331,8.80675273,164.21,164.17,6.0906]
[1752650921332,8.80675273,164.21,164.17,8.80795273]
[1752650921933,2.71735273,164.2,164.17,6.0906]
[1752650922325,2.71735273,164.2,164.18,6.0905]
[1752650922629,8.80715273,164.2,164.16,2.75608552]
[1752650922934,10.24374173,164.24,164.17,6.0907]
[1752650923230,2.71735273,164.2,164.16,0.03873279]
[1752650923427,2.71735273,164.19,164.17,6.0909]
[1752650923631,8.80775273,164.19,164.16,2.75608552]
[1752650923835,2.71735273,164.17,164.16,0.03873279]
[1752650925435,8.80815273,164.18,164.16,0.03873279]
[1752650927038,6.0908,164.18,164.16,0.03873279]
[1752650927233,8.80815273,164.18,164.16,0.03873279]
[1752650927733,8.80765273,164.19,164.16,6.12993279]
[1752650927937,8.80765273,164.19,164.16,0.03873279]
[1752650928638,8.80795273,164.18,164.16,0.03873279]
[1752650932446,6.0902,164.19,164.16,6.12993279]
[1752650932744,2.71735273,164.18,164.16,6.12993279]
[1752650935552,2.71735273,164.18,164.17,6.0909]
[1752650936552,2.71735273,164.19,164.17,6.0909]
[1752650940354,2.71735273,164.19,164.16,0.03873279]
[1752650940652,8.80705273,164.21,164.16,0.03873279]
[1752650941051,2.71735273,164.23,164.19,2.71735273]
[1752650941652,8.80625273,164.23,164.2,6.0898]
[1752650941853,8.80625273,164.23,164.19,2.76310992]
[1752650942157,8.84552605,164.23,164.19,2.76310992]
[1752650942453,8.80645273,164.22,164.19,6.13575719]
[1752650943450,6.0895,164.21,164.19,0.04575719]
[1752650943751,2.71735273,164.22,164.19,0.04575719]
[1752650943954,2.71735273,164.21,164.19,0.04575719]
[1752650944455,2.71735273,164.21,164.19,6.13575719]
[1752650945556,8.80675273,164.21,164.19,6.13575719]
[1752650945753,2.71735273,164.21,164.19,0.04575719]
[1752650945958,2.71735273,164.2,164.19,0.04575719]
[1752650946253,2.71735273,164.2,164.13,2.71735273]
[1752650946557,2.71735273,164.17,164.15,6.0916]
[1752650947357,2.71735273,164.17,164.16,6.0913]
[1752650948760,2.71735273,164.17,164.15,6.0915]
[1752650948962,0.03889232,164.18,164.15,6.0915]
[1752650949663,0.03889232,164.18,164.11,4.24788414]
[1752650949859,0.03889232,164.18,164.12,4.75990655]
[1752650950163,0.03889232,164.18,164.14,6.0919]
[1752650950662,10.33888414,164.17,164.09,4.24788414]
[1752650950862,10.33888414,164.17,164.1,4.76045999]
[1752650951061,10.33888414,164.17,164.11,4.76045999]
[1752650951262,10.33888414,164.17,164.13,6.0921]
[1752650951462,0.03877486,164.15,164.13,6.0921]
[1752650952266,0.03877486,164.15,164.14,6.092]
[1752650971080,0.03877486,164.15,164.13,6.0922]
[1752650972176,0.03877486,164.15,164.14,6.092]
[1752650992694,0.03877486,164.15,164.14,8.81020111]
[1752650993698,2.71820111,164.2,164.18,6.0903]
[1752650994299,8.80810111,164.2,164.17,6.0907]
[1752650994500,8.80761519,164.2,164.17,6.0907]
[1752650996093,8.80761519,164.2,164.15,2.71771519]
[1752650996094,6.0899,164.2,164.18,6.0905]
[1752650996299,2.71771519,164.2,164.18,6.0905]
[1752650996901,6.0896,164.21,164.18,6.0905]
[1752650997097,2.71771519,164.2,164.18,6.0905]
[1752650999116,8.80751519,164.2,164.18,6.0905]
[1752650999802,6.0902,164.19,164.17,6.0908]
[1752651000004,8.80791519,164.19,164.17,6.0908]
[1752651000303,2.71771519,164.19,164.15,2.71771519]
[1752651000503,2.71771519,164.18,164.14,2.71771519]
[1752651000696,2.71771519,164.19,164.14,2.71771519]
[1752651000900,10.24374173,164.22,164.16,2.71771519]
[1752651001096,2.71771519,164.2,164.16,2.71771519]
[1752651001405,2.71771519,164.2,164.17,6.0908]
[1752651002003,8.80761519,164.2,164.17,6.0908]
[1752651002398,2.71771519,164.19,164.17,6.0908]
[1752651002703,8.80791519,164.19,164.17,6.0908]
[1752651003502,2.71771519,164.19,164.17,6.0908]
[1752651003695,2.71771519,164.19,164.16,6.0911]
[1752651004100,8.80811519,164.19,164.14,2.71771519]
[1752651004805,8.80811519,164.19,164.16,6.0911]
[1752651006504,6.0899,164.2,164.17,6.0906]
[1752651006705,2.71771519,164.19,164.15,2.71771519]
[1752651006904,2.71771519,164.18,164.14,2.71771519]
[1752651007709,2.71771519,164.18,164.16,6.0911]
[1752651008603,8.80791519,164.2,164.17,6.0909]
[1752651010009,6.0902,164.19,164.16,6.0911]
[1752651010209,8.80791519,164.19,164.16,6.0911]
[1752651011214,2.71771519,164.18,164.16,6.0911]
[1752651012614,8.80831519,164.18,164.16,6.0911]
[1752651013211,2.71771519,164.18,164.16,6.0911]
[1752651015215,2.71771519,164.17,164.15,6.0915]
[1752651016117,8.80861519,164.17,164.15,6.0915]
[1752651017313,6.0913,164.16,164.14,6.0919]
[1752651017517,2.71771519,164.16,164.14,6.0919]
[1752651018215,2.71771519,164.17,164.15,6.0917]
[1752651018720,2.71771519,164.17,164.13,2.71771519]
[1752651019218,2.71771519,164.17,164.15,6.0915]
[1752651021420,2.71771519,164.17,164.13,2.71771519]
[1752651022021,2.71771519,164.17,164.15,6.0915]
[1752651022622,8.80871519,164.17,164.14,6.092]
[1752651022922,8.80871519,164.17,164.13,2.71771519]
[1752651023219,8.80871519,164.17,164.15,6.0916]
[1752651023422,8.80871519,164.17,164.13,2.71771519]
[1752651023924,10.24374173,164.2,164.12,2.71771519]
[1752651023925,8.80901519,164.16,164.12,2.71771519]
[1752651024317,2.71771519,164.16,164.12,2.71771519]
[1752651024522,2.71771519,164.16,164.14,6.0918]
[1752651025525,8.80911519,164.16,164.14,6.0918]
[1752651025726,6.0914,164.16,164.14,6.0918]
[1752651025924,8.80911519,164.16,164.14,6.0918]
[1752651026126,8.80911519,164.16,164.12,6.0926]
[1752651026419,6.0911,164.17,164.12,2.71771519]
[1752651026728,2.71771519,164.16,164.12,2.71771519]
[1752651027122,8.80901519,164.16,164.12,2.71771519]
[1752651027328,8.80901519,164.16,164.12,8.81021519]
[1752651028332,8.80941519,164.15,164.12,2.71771519]
[1752651028536,8.80941519,164.15,164.11,8.81071519]
[1752651029531,2.71771519,164.13,164.09,2.71771519]
[1752651029829,2.71771519,164.12,164.08,2.71771519]
[1752651030430,2.71771519,164.12,164.09,6.0938]
[1752651030731,2.71771519,164.12,164.08,2.71771519]
[1752651031029,2.71771519,164.12,164.08,8.81181519]
[1752651032531,8.81061519,164.12,164.08,8.81181519]
[1752651033034,2.71771519,164.11,164.08,6.0941]
[1752651034032,6.0929,164.12,164.08,6.0941]
[1752651034232,2.71771519,164.11,164.08,6.0941]
[1752651034432,2.71771519,164.11,164.09,6.0937]
[1752651034731,2.71771519,164.12,164.09,6.0937]
[1752651038231,10.24374173,164.18,164.08,2.71771519]
[1752651038432,2.71771519,164.15,164.1,2.71771519]
[1752651038733,8.80921519,164.16,164.12,2.71771519]
[1752651039036,8.81032139,164.16,164.12,2.71882139]
[1752651040239,2.71882139,164.16,164.12,8.81162139]
[1752651040430,6.0909,164.18,164.14,2.71882139]
[1752651040636,10.24374173,164.22,164.14,2.71882139]
[1752651040840,8.80922139,164.19,164.15,6.0916]
[1752651041140,8.80922139,164.19,164.14,2.71882139]
[1752651041338,8.80922139,164.19,164.14,8.81062139]
[1752651041638,6.0906,164.18,164.14,2.71882139]
[1752651041940,8.80866555,164.18,164.14,2.71806555]
[1752651044342,8.80866555,164.18,164.14,8.81006555]
[1752651044642,6.0906,164.18,164.14,8.81006555]
[1752651044846,2.71806555,164.19,164.15,6.0916]
[1752651045540,8.80806555,164.2,164.16,2.71806555]
[1752651047849,8.80806555,164.2,164.15,8.80966555]
[1752651050448,8.80806555,164.2,164.16,2.71806555]
[1752651051050,6.0902,164.19,164.16,2.71806555]
[1752651052544,6.0902,164.19,164.15,8.80966555]
[1752651053044,6.0903,164.19,164.15,8.80966555]
[1752651053550,8.80836555,164.19,164.15,8.80966555]
[1752651053944,2.71806555,164.17,164.14,2.71806555]
[1752651054144,2.71806555,164.17,164.13,2.71806555]
[1752651054354,8.80916555,164.17,164.13,2.71806555]
[1752651055249,2.71806555,164.17,164.13,8.81046555]
[1752651057054,2.71806555,164.17,164.13,6.0924]
[1752651057254,2.71806555,164.16,164.13,6.0924]
[1752651058655,2.71806555,164.18,164.14,8.80986555]
[1752651059053,2.71806555,164.17,164.14,6.0918]
[1752651059956,6.0903,164.19,164.14,8.80986555]
[1752651060259,2.71806555,164.18,164.15,6.0918]
[1752651060656,6.0901,164.2,164.14,2.71806555]
[1752651060848,2.71806555,164.2,164.16,2.71806555]
[1752651061958,2.71806555,164.2,164.17,6.091]
[1752651063357,10.24374173,164.24,164.17,2.71806555]
[1752651063559,1.06019985,164.25,164.18,2.71806555]
[1752651063560,2.71806555,164.22,164.18,2.71806555]
[1752651063958,2.71806555,164.22,164.18,8.80846555]
[1752651065053,2.71806555,164.21,164.18,8.80846555]
[1752651065264,2.71806555,164.21,164.18,6.0904]
[1752651067155,6.0892,164.22,164.18,6.0904]
[1752651067458,2.71806555,164.21,164.19,6.0903]
[1752651070162,2.71806555,164.21,164.18,6.0905]
[1752651071059,2.71806555,164.2,164.18,6.0905]
[1752651071559,2.71806555,164.2,164.17,6.091]
[1752651071762,2.71806555,164.19,164.17,6.091]
[1752651072459,2.71806555,164.2,164.17,6.091]
[1752651072860,8.80826555,164.2,164.16,6.0913]
[1752651073062,8.80826555,164.2,164.14,2.71806555]
[1752651073259,2.71806555,164.18,164.14,2.71806555]
[1752651073459,2.71806555,164.18,164.1,12.1868]
[1752651073761,2.71806555,164.18,164.14,2.71806555]
[1752651074563,2.71806555,164.18,164.16,6.0912]
[1752651076663,2.71806555,164.18,164.07,181.09576997]
[1752651076664,2.71806555,164.17,164.12,2.71806555]
[1752651076865,2.71806555,164.16,164.12,2.71806555]
[1752651077065,2.71806555,164.16,164.11,2.71806555]
[1752651077268,2.71806555,164.17,164.13,2.71806555]
[1752651077676,2.71806555,164.17,164.15,6.0917]
[1752651078870,2.71806555,164.18,164.16,6.0914]
[1752651079071,2.71806555,164.19,164.14,2.71806555]
[1752651079573,2.71806555,164.19,164.16,6.0913]
[1752651082065,2.71806555,164.17,164.07,181.09576997]
[1752651082262,2.71806555,164.16,164.11,2.71806555]
[1752651082665,2.71806555,164.15,164.12,6.0926]
[1752651082869,2.71806555,164.15,164.11,2.71806555]
[1752651083672,6.0912,164.17,164.1,6.0936]
[1752651083883,2.71806555,164.15,164.11,2.71806555]
[1752651084369,2.71806555,164.14,164.1,2.71806555]
[1752651084962,6.0919,164.15,164.09,6.0939]
[1752651085373,6.0922,164.14,164.08,10.34345168]
[1752651085673,4.24915168,164.16,164.08,4.24915168]
[1752651085970,4.24915168,164.16,164.09,6.094]
[1752651087066,6.0922,164.14,164.09,6.094]
[1752651088474,6.0926,164.13,164.08,10.34345168]
[1752651089573,6.0926,164.13,164.09,6.0939]
[1752651091074,6.0926,164.13,164.08,6.0942]
[1752651092274,4.24915168,164.13,164.07,10.34385168]
[1752651092775,6.0932,164.12,164.07,10.34385168]
[1752651092976,6.0932,164.12,164.07,6.0947]
[1752651093192,6.0932,164.12,164.08,6.0943]
[1752651095293,6.0933,164.11,164.08,6.0943]
[1752651095474,4.24915168,164.13,164.07,6.0948]
[1752651095675,4.24915168,164.13,164.05,702.7]
[1752651095975,6.0939,164.1,164.07,6.0948]
[1752651096678,6.0941,164.09,164.06,6.095]
[1752651097977,6.0938,164.1,164.06,6.095]
[1752651098167,4.24915168,164.09,164.05,182.0954]
[1752651098388,4.24915168,164.09,164.05,176.0]
[1752651098677,4.24915168,164.09,164.02,176.02]
[1752651098678,6.0946,164.08,164.02,176.02]
[1752651098977,6.0946,164.08,164.05,6.0955]
[1752651099378,6.0948,164.07,164.02,176.02]
[1752651100072,10.34395168,164.07,164.04,6.0957]
[1752651102384,4.24915168,164.07,164.02,176.02]
[1752651102576,4.24915168,164.09,164.02,176.02]
[1752651103080,6.0945,164.08,164.04,6.0959]
[1752651106284,14.49289341,164.16,164.02,176.02]
[1752651106581,4.24915168,164.12,164.03,4.24915168]
[1752651106983,6.0939,164.1,164.05,6.0952]
[1752651107782,6.0934,164.11,164.06,6.0951]
[1752651107985,4.24915168,164.12,164.05,4.24915168]
[1752651108179,6.0926,164.13,164.05,4.24915168]
[1752651108674,526.58,164.17,164.07,4.24915168]
[1752651108877,4.24915168,164.14,164.06,4.24915168]
[1752651109380,6.0919,164.15,164.1,6.0936]
[1752651109880,6.0922,164.14,164.09,6.0939]
[1752651110683,6.0919,164.15,164.1,6.0937]
[1752651111181,6.0922,164.14,164.1,6.0937]
[1752651111381,6.0922,164.14,164.08,4.24915168]
[1752651111583,4.24915168,164.16,164.08,4.24915168]
[1752651111978,6.0921,164.15,164.1,6.0936]
[1752651112483,4.24915168,164.16,164.1,6.0936]
[1752651112779,4.24915168,164.18,164.1,4.24915168]
[1752651112990,4.24915168,164.2,164.12,4.24915168]
[1752651113176,1.06028061,164.24,164.12,4.24915168]
[1752651113485,4.24915168,164.21,164.16,6.0912]
[1752651114184,6.0903,164.2,164.15,6.0918]
[1752651114978,4.24915168,164.18,164.07,526.66]
[1752651115182,4.24915168,164.18,164.11,4.24915168]
[1752651115591,6.0915,164.16,164.12,6.0927]
[1752651116077,4.24915168,164.18,164.12,6.0927]
[1752651116586,6.0914,164.17,164.13,6.0925]
[1752651116880,4.24915168,164.18,164.13,6.0925]
[1752651117382,4.24915168,164.18,164.14,6.0922]
[1752651117587,4.24915168,164.2,164.14,6.0922]
[1752651117984,6.0906,164.19,164.14,6.0922]
[1752651118580,6.0906,164.19,164.11,4.24915168]
[1752651119192,6.0907,164.18,164.14,6.092]
[1752651119787,6.0907,164.18,164.13,6.0923]
[1752651119988,6.0907,164.18,164.11,4.24915168]
[1752651120192,6.0905,164.19,164.11,4.24915168]
[1752651120390,4.24915168,164.2,164.14,6.0919]
[1752651121089,6.0905,164.19,164.14,6.0919]
[1752651121491,4.24915168,164.2,164.14,6.0919]
[1752651121890,6.0909,164.18,164.14,6.0919]
[1752651122284,4.24915168,164.2,164.13,4.24915168]
[1752651122696,6.0908,164.18,164.13,4.24915168]
[1752651122989,6.0908,164.18,164.14,6.092]
[1752651123592,4.24915168,164.2,164.11,4.24915168]
[1752651125003,6.0905,164.19,164.14,6.0919]
[1752651126408,6.0905,164.19,164.15,6.0918]
[1752651126705,6.0905,164.19,164.12,4.24915168]
[1752651126903,6.0905,164.19,164.14,6.0918]
[1752651127506,6.0905,164.19,164.15,6.0917]
[1752651127701,10.33925168,164.2,164.12,4.24915168]
[1752651128425,10.33925168,164.2,164.16,6.0914]
[1752651128600,10.33925168,164.2,164.12,4.24915168]
[1752651128909,10.33925168,164.2,164.16,6.0912]
[1752651129306,6.0904,164.19,164.16,6.0912]
[1752651129509,4.24915168,164.2,164.16,6.0912]
[1752651129903,10.33935168,164.2,164.16,6.0912]
[1752651130899,6.0904,164.19,164.15,6.0917]
[1752651133610,6.0907,164.18,164.15,6.0917]
[1752651134106,10.34005168,164.18,164.1,4.24915168]
[1752651134610,4.24915168,164.18,164.14,6.0919]
[1752651134807,6.0913,164.17,164.1,4.24915168]
[1752651135207,6.0913,164.17,164.14,6.0922]
[1752651136110,4.24915168,164.17,164.06,175.98]
[1752651136314,4.24915168,164.17,164.09,4.24915168]
[1752651136611,4.24915168,164.17,164.11,6.0931]
[1752651136812,6.092,164.15,164.11,6.0931]
[1752651137009,4.24915168,164.15,164.07,4.24915168]
[1752651137209,4.24974044,164.16,164.07,4.24974044]
[1752651137708,4.24974044,164.16,164.11,6.0932]
[1752651137908,4.24974044,164.16,164.09,4.24974044]
[1752651138514,6.0921,164.15,164.11,6.0931]
[1752651138715,6.0921,164.15,164.09,4.24974044]
[1752651139017,4.24974044,164.18,164.09,4.24974044]
[1752651139213,4.24974044,164.18,164.11,4.24974044]
[1752651139714,6.0909,164.18,164.11,4.24974044]
[1752651140015,6.0909,164.18,164.14,6.092]
[1752651140411,6.0911,164.17,164.14,6.092]